bitfinex/quotes_SOLUSD_20220104
["timestamp","ask_amount","ask_price","bid_price","bid_amount"]
[1641255966009,1.2353,169.52,169.37,42.5054]
[1641255966217,77.3142,169.53,169.37,115.4665]
[1641255966418,77.3142,169.53,169.37,184.09157294]
[1641255966613,77.3142,169.53,169.37,190.00855327]
[1641255966813,77.3142,169.53,169.37,130.97855327]
[1641255967015,2.473844,169.52,169.37,130.97855327]
[1641255967817,2.473844,169.52,169.37,130.71855327]
[1641255968016,2.473844,169.52,169.37,115.2065]
[1641255968216,1.3467,169.51,169.37,115.2065]
[1641255969032,1.3467,169.51,169.37,115.4665]
[1641255969420,2.473844,169.52,169.37,115.4665]
[1641255970022,1.3573,169.51,169.37,115.4665]
[1641255970621,1.8573,169.51,169.37,108.0805]
[1641255971222,1.8573,169.51,169.37,107.8205]
[1641255972423,1.8573,169.51,169.37,108.0805]
[1641255972624,1.8573,169.51,169.37,107.5805]
[1641255972824,10.4173,169.51,169.37,107.3205]
[1641255973022,10.4173,169.51,169.37,25.7994]
[1641255973023,10.6773,169.51,169.37,25.7994]
[1641255973223,12.10399368,169.51,169.35,24.0136]
[1641255973425,12.10399368,169.51,169.34,10.1664]
[1641255973626,13.75517513,169.51,169.34,10.1664]
[1641255973824,13.75517513,169.51,169.34,10.6664]
[1641255974027,13.75517513,169.51,169.34,9.4156]
[1641255974229,13.75517513,169.51,169.35,25.70951181]
[1641255974427,13.75517513,169.51,169.35,26.20951181]
[1641255974629,1.65118145,169.5,169.35,26.20951181]
[1641255974828,8.56,169.49,169.35,26.46951181]
[1641255975030,8.82,169.49,169.35,26.46951181]
[1641255975229,9.32,169.49,169.35,26.46951181]
[1641255975628,1.2436,169.48,169.35,26.46951181]
[1641255975832,2.7309852,169.46,169.35,0.76]
[1641255976031,8.56,169.45,169.32,0.76]
[1641255976231,8.56,169.45,169.32,0.26]
[1641255976431,9.32,169.45,169.31,23.281]
[1641255976836,1.3617,169.44,169.31,48.03566182]
[1641255977035,8.56,169.43,169.31,48.03566182]
[1641255977437,9.32,169.43,169.31,48.03566182]
[1641255979840,1.42669368,169.42,169.24,21.67542694]
[1641255980039,107.0,169.4,169.24,5.91698033]
[1641255980240,90.19247272,169.39,169.22,8.9776]
[1641255980441,93.77034785,169.39,169.2,22.9195]
[1641255980644,1.3178,169.38,169.21,1.3366]
[1641255980845,8.56,169.37,169.22,25.79563891]
[1641255981045,8.82,169.37,169.22,25.79563891]
[1641255981244,9.32,169.37,169.22,26.29563891]
[1641255981948,10.97118145,169.37,169.22,26.29563891]
[1641255982247,9.06,169.37,169.22,26.29563891]
[1641255982447,9.06,169.37,169.22,34.85563891]
[1641255982648,9.06,169.37,169.22,35.11563891]
[1641255982847,9.06,169.37,169.23,23.2418]
[1641255983047,9.06,169.37,169.23,24.7915]
[1641255983258,9.06,169.37,169.23,25.2915]
[1641255983865,8.56,169.37,169.23,25.2915]
[1641255987774,82.86557272,169.39,169.23,33.8515]
[1641255987975,81.63247272,169.39,169.23,111.4865]
[1641255988175,81.63247272,169.39,169.24,9.59507294]
[1641255988473,81.63247272,169.39,169.25,8.56]
[1641255988675,81.63247272,169.39,169.25,33.4185]
[1641255988875,81.63247272,169.39,169.25,34.1785]
[1641255989378,81.63247272,169.39,169.26,1.2317]
[1641255989580,81.63247272,169.39,169.27,8.56]
[1641255989978,78.8068,169.39,169.27,9.32]
[1641255990480,1.2307,169.42,169.29,24.03589298]
[1641255990679,1.2307,169.42,169.3,23.9696]
[1641255990884,1.2307,169.42,169.3,24.4696]
[1641255991079,4.15275999,169.42,169.3,24.7296]
[1641255991277,4.15275999,169.42,169.31,1.356]
[1641255991478,4.15275999,169.42,169.31,1.616]
[1641255991677,4.15275999,169.42,169.31,2.116]
[1641255994685,2.92205999,169.42,169.31,2.116]
[1641255997791,78.7,169.43,169.31,2.116]
[1641256001392,78.7,169.43,169.31,10.676]
[1641256002790,2.92157088,169.44,169.31,10.676]
[1641256002991,2.92157088,169.44,169.32,23.7114]
[1641256003391,2.92157088,169.44,169.32,24.4714]
[1641256003791,2.92157088,169.44,169.33,1.2292]
[1641256003993,2.92157088,169.44,169.33,1.9892]
[1641256008797,1.3643,169.43,169.33,1.9892]
[1641256009097,1.3643,169.43,169.32,23.7114]
[1641256009298,10.6843,169.43,169.29,25.36539298]
[1641256010320,10.4243,169.43,169.29,25.36539298]
[1641256010619,1.3643,169.43,169.29,33.92539298]
[1641256010818,1.65118145,169.49,169.29,34.42539298]
[1641256011019,73.6701,169.5,169.3,22.9576]
[1641256011317,73.6701,169.5,169.31,8.56]
[1641256011521,25.6495541,169.49,169.32,101.1752]
[1641256011720,25.6495541,169.49,169.33,8.56]
[1641256011916,25.6495541,169.49,169.33,9.06]
[1641256012116,25.6495541,169.49,169.34,25.1037]
[1641256012317,25.6495541,169.49,169.34,33.6637]
[1641256012519,25.9095541,169.49,169.34,34.4237]
[1641256012716,1.2854,169.48,169.34,34.4237]
[1641256013118,1.5454,169.48,169.34,34.4237]
[1641256021734,1.2854,169.48,169.34,34.4237]
[1641256026447,72.4296,169.5,169.34,41.6837]
[1641256026745,26.128,169.56,169.36,34.00942801]
[1641256026945,78.3069,169.55,169.37,31.1758]
[1641256027144,78.3069,169.55,169.38,59.03]
[1641256027345,78.3069,169.55,169.39,140.5041]
[1641256027544,78.3069,169.55,169.39,140.7641]
[1641256027745,2.55569842,169.57,169.4,1.42669368]
[1641256027946,2.55569842,169.57,169.43,8.8467]
[1641256028146,2.55569842,169.57,169.44,33.48320009]
[1641256028347,2.55569842,169.57,169.44,33.98320009]
[1641256028550,2.55569842,169.57,169.44,34.24320009]
[1641256030649,1.3243,169.6,169.44,41.05120009]
[1641256030848,1.3243,169.6,169.45,24.9478]
[1641256031048,93.7,169.63,169.46,8.56]
[1641256031253,93.7,169.63,169.47,23.8901]
[1641256031451,93.7,169.63,169.48,8.56]
[1641256031647,2.56927241,169.62,169.49,24.0817]
[1641256031847,2.56927241,169.62,169.49,24.5817]
[1641256032048,2.56927241,169.62,169.49,24.8417]
[1641256032849,2.82927241,169.62,169.49,24.8417]
[1641256034650,2.56927241,169.62,169.49,24.8417]
[1641256037259,73.628,169.64,169.51,23.87055648]
[1641256037459,8.56,169.65,169.51,49.00495648]
[1641256038061,8.56,169.65,169.52,1.3081]
[1641256038363,2.28192258,169.64,169.52,1.8081]
[1641256038561,2.28192258,169.64,169.52,10.6281]
[1641256041071,2.28192258,169.64,169.53,24.4637]
[1641256041470,2.28192258,169.64,169.53,25.2237]
[1641256041869,2.28192258,169.64,169.53,0.76]
[1641256042169,11.10192258,169.64,169.47,18.5898]
[1641256042370,13.02861626,169.64,169.48,1.3113]
[1641256042970,1.3022,169.63,169.49,27.63892567]
[1641256043384,1.3022,169.63,169.49,28.13892567]
[1641256043583,1.3022,169.63,169.5,24.3909]
[1641256043987,1.5622,169.63,169.5,33.4509]
[1641256044185,0.26,169.63,169.51,1.3251]
[1641256044386,0.26,169.63,169.51,1.8251]
[1641256044585,2.54192258,169.64,169.51,7.4851]
[1641256044786,3.89852258,169.64,169.52,24.3213]
[1641256044985,3.89852258,169.64,169.52,24.5813]
[1641256045186,3.89852258,169.64,169.52,25.0813]
[1641256047089,8.56,169.63,169.52,0.76]
[1641256047490,10.74669368,169.63,169.49,28.39892567]
[1641256047889,8.82,169.63,169.49,28.39892567]
[1641256048090,10.24669368,169.63,169.49,28.39892567]
[1641256048290,10.74669368,169.63,169.49,29.67262567]
[1641256048893,1.3174,169.62,169.49,29.67262567]
[1641256049196,1.5774,169.62,169.49,29.67262567]
[1641256050394,2.0774,169.62,169.49,29.67262567]
[1641256051201,2.0774,169.62,169.49,2.0337]
[1641256051395,2.0774,169.62,169.49,0.5]
[1641256051596,9.98669368,169.61,169.48,22.8253]
[1641256051904,10.48669368,169.61,169.44,1.3026]
[1641256052095,97.38329368,169.6,169.46,0.5]
[1641256052297,8.56,169.59,169.44,24.3856696]
[1641256052496,2.2176651,169.58,169.44,24.3856696]
[1641256052795,8.56,169.57,169.44,24.3856696]
[1641256052995,8.56,169.57,169.45,22.7153]
[1641256053196,1.2605,169.56,169.44,24.6456696]
[1641256053596,1.2605,169.56,169.44,48.3417696]
[1641256055999,26.0093651,169.58,169.44,48.3417696]
[1641256056202,26.0093651,169.58,169.45,8.56]
[1641256056403,23.7917,169.58,169.46,23.3567]
[1641256056600,23.7917,169.58,169.46,23.6167]
[1641256056802,23.7917,169.58,169.46,24.1167]
[1641256057202,23.7917,169.58,169.47,1.3319]
[1641256057402,23.7917,169.58,169.47,1.8319]
[1641256057603,23.7917,169.58,169.47,2.0919]
[1641256059110,77.47925169,169.6,169.47,10.6519]
[1641256059307,77.47925169,169.6,169.48,22.8859]
[1641256059509,77.47925169,169.6,169.48,28.1119]
[1641256059706,76.18035169,169.6,169.48,28.6119]
[1641256060511,76.18035169,169.6,169.49,1.2297]
[1641256060910,76.18035169,169.6,169.49,1.9897]
[1641256068118,76.18035169,169.6,169.49,18.12739368]
[1641256068720,2.80515169,169.6,169.49,18.12739368]
[1641256068921,1.2475,169.63,169.51,28.30841666]
[1641256069123,1.2475,169.63,169.52,32.6579]
[1641256069322,1.2475,169.63,169.52,33.1579]
[1641256069540,1.2475,169.63,169.52,33.4179]
[1641256069743,1.2475,169.63,169.53,1.2377]
[1641256069939,3.86431552,169.63,169.53,8.0447]
[1641256070138,3.86431552,169.63,169.53,8.3047]
[1641256072441,3.86431552,169.63,169.53,7.8047]
[1641256073242,3.86431552,169.63,169.53,1.4977]
[1641256074048,3.86431552,169.63,169.53,1.9977]
[1641256076947,3.86431552,169.63,169.53,7.1827]
[1641256080153,3.86431552,169.63,169.53,1.9977]
[1641256083753,3.86431552,169.63,169.53,1.7377]
[1641256085054,3.86431552,169.63,169.53,1.9977]
[1641256085657,78.7879,169.65,169.63,3.86431552]
[1641256085856,93.7,169.65,169.6,5.789]
[1641256086056,30.76065659,169.65,169.61,40.0]
[1641256086256,17.74864613,169.65,169.61,40.0]
[1641256086459,1.66715944,169.69,169.61,40.26]
[1641256086656,1.66715944,169.69,169.62,8.56]
[1641256086856,93.7,169.64,169.62,37.09433142]
[1641256087058,93.7,169.64,169.62,37.35433142]
[1641256087257,1.66715944,169.69,169.62,37.35433142]
[1641256087458,162.92715944,169.7,169.63,85.0]
[1641256087658,150.98475944,169.7,169.64,8.56]
[1641256087862,3.32613872,169.72,169.64,15.22469368]
[1641256088059,3.32613872,169.72,169.64,15.48469368]
[1641256088258,1.66637888,169.73,169.65,1.42669368]
[1641256088460,1.66637888,169.73,169.66,8.56]
[1641256088861,2.28793872,169.77,169.67,88.42669368]
[1641256089057,2.28793872,169.77,169.69,30.57526019]
[1641256089258,2.28793872,169.77,169.7,8.56]
[1641256089460,4.72659469,169.81,169.7,9.32]
[1641256089662,23.6142,169.89,169.7,9.32]
[1641256089859,74.1813,169.86,169.7,10.74669368]
[1641256090059,1.2922,169.91,169.7,10.74669368]
[1641256090259,78.3795,169.91,169.71,24.7316]
[1641256090466,2.70887638,169.88,169.72,8.56]
[1641256090659,2.70887638,169.88,169.72,9.98669368]
[1641256090863,3.20887638,169.88,169.72,10.74669368]
[1641256091466,2.70887638,169.88,169.73,1.42669368]
[1641256091667,2.70887638,169.88,169.74,8.56]
[1641256091867,2.70887638,169.88,169.74,9.06]
[1641256092066,2.70887638,169.88,169.75,1.42669368]
[1641256092274,2.70887638,169.88,169.77,31.13078847]
[1641256092469,2.70887638,169.88,169.78,8.56]
[1641256092873,77.754,169.95,169.78,9.32]
[1641256093077,4.72659469,169.99,169.78,123.564]
[1641256093272,79.48919469,169.99,169.79,24.9066]
[1641256093472,74.7626,169.99,169.8,115.56]
[1641256093672,74.7626,169.99,169.8,116.98669368]
[1641256093873,3.9849,170.0,169.8,117.74669368]
[1641256094076,463.67474204,170.02,169.83,107.0]
[1641256094275,4.72659469,170.05,169.84,8.56]
[1641256094484,4.72659469,170.05,169.89,107.0]
[1641256094674,4.72659469,170.05,169.9,8.56]
[1641256094873,4.72659469,170.05,169.91,130.49911934]
[1641256095076,2.5423,170.11,169.92,8.56]
[1641256095374,2.5423,170.11,169.94,107.0]
[1641256095577,73.3937,170.14,169.95,8.56]
[1641256095813,8.68449009,170.18,169.95,115.56]
[1641256095814,2.6343,170.17,169.95,115.56]
[1641256096011,2.6343,170.17,169.97,107.0]
[1641256096211,2.94403588,170.16,169.98,115.56]
[1641256096411,2.94403588,170.16,169.99,8.56]
[1641256096610,2.94403588,170.16,169.99,8.82]
[1641256096806,2.94403588,170.16,169.99,9.32]
[1641256097210,2.94403588,170.16,170.0,27.11924759]
[1641256097411,2.94403588,170.16,170.01,8.56]
[1641256097707,2.94403588,170.16,170.01,8.82]
[1641256097915,2.94403588,170.16,170.01,9.32]
[1641256098112,2.5339,170.2,170.01,9.32]
[1641256098306,2.5339,170.2,170.01,116.32]
[1641256098714,2.5339,170.2,170.02,108.42669368]
[1641256098915,1.3094,170.22,170.03,115.56]
[1641256099111,2.6891,170.26,170.03,116.98669368]
[1641256099112,60.46428884,170.19,170.03,116.98669368]
[1641256099308,2.52920481,170.2,170.03,117.74669368]
[1641256099510,36.00093328,170.27,170.06,107.0]
[1641256099709,36.00093328,170.27,170.07,8.56]
[1641256099909,36.00093328,170.27,170.08,27.60713444]
[1641256100110,8.56,170.3,170.09,8.56]
[1641256100513,2.56594212,170.29,170.09,9.32]
[1641256100714,2.56594212,170.29,170.1,108.42669368]
[1641256100911,2.56594212,170.29,170.11,8.56]
[1641256101115,2.56594212,170.29,170.11,9.50294]
[1641256101310,2.56594212,170.29,170.11,10.00294]
[1641256101713,3.06594212,170.29,170.11,10.00294]
[1641256102113,3.06594212,170.29,170.11,9.50294]
[1641256102312,3.06594212,170.29,170.11,9.24294]
[1641256102513,11.82154412,170.29,170.11,9.24294]
[1641256102717,20.50603421,170.29,170.11,9.24294]
[1641256102914,29.06603421,170.29,170.11,9.24294]
[1641256103113,29.32603421,170.29,170.11,9.24294]
[1641256103912,20.76603421,170.29,170.11,9.74294]
[1641256104112,3.32594212,170.29,170.11,10.00294]
[1641256104314,3.06594212,170.29,170.11,10.00294]
[1641256104513,3.06594212,170.29,170.11,10.74669368]
[1641256104712,3.06594212,170.29,170.11,9.32]
[1641256105917,3.32594212,170.29,170.11,9.32]
[1641256106316,3.32594212,170.29,170.11,8.82]
[1641256107116,3.32594212,170.29,170.11,8.56]
[1641256107316,8.56,170.28,170.11,8.56]
[1641256107516,8.82,170.28,170.08,36.16713444]
[1641256107716,9.32,170.28,170.08,36.16713444]
[1641256107920,18.3201012,170.28,170.08,36.16713444]
[1641256108322,2.52000889,170.24,170.01,123.25777738]
[1641256108523,2.52000889,170.24,170.01,26.69137738]
[1641256108524,8.56,170.23,170.01,26.69137738]
[1641256108719,17.5601012,170.23,170.01,8.56]
[1641256109019,9.0001012,170.22,169.99,18.13137738]
[1641256109218,11.13683595,170.21,169.99,18.13137738]
[1641256109418,11.63683595,170.21,170.0,27.20606062]
[1641256109619,11.89683595,170.21,170.0,35.76606062]
[1641256109820,11.89683595,170.21,170.0,27.70606062]
[1641256110221,11.89683595,170.21,170.0,32.72206062]
[1641256110620,11.89683595,170.21,170.0,34.1487543]
[1641256110822,11.63683595,170.21,170.0,33.6487543]
[1641256111420,11.63683595,170.21,170.0,33.9087543]
[1641256112121,11.63683595,170.21,170.0,34.4087543]
[1641256112322,11.63683595,170.21,170.0,29.3927543]
[1641256113421,11.89683595,170.21,170.0,29.3927543]
[1641256114220,20.89693715,170.21,170.0,27.96606062]
[1641256114423,20.89693715,170.21,170.0,27.70606062]
[1641256115323,11.63683595,170.21,170.0,27.70606062]
[1641256115523,11.63683595,170.21,170.01,9.98669368]
[1641256116024,11.63683595,170.21,170.02,1.42669368]
[1641256116227,11.63683595,170.21,170.03,8.56]
[1641256116424,11.13683595,170.21,170.03,9.06]
[1641256116624,11.13683595,170.21,170.04,1.42669368]
[1641256116827,11.13683595,170.21,170.05,8.56]
[1641256117026,0.00732681,170.25,170.05,8.82]
[1641256117229,8.56,170.24,170.05,8.82]
[1641256117428,2.99892642,170.23,170.05,0.26]
[1641256117628,8.56,170.22,170.05,0.26]
[1641256117829,8.56,170.22,170.0,116.3303543]
[1641256118027,8.82,170.22,170.0,116.3303543]
[1641256118228,9.32,170.22,170.0,116.3303543]
[1641256122546,9.32,170.22,170.0,36.26606062]
[1641256122750,107.0,170.19,170.0,27.70606062]
[1641256122947,11.4555469,170.18,170.0,27.70606062]
[1641256123347,12.2155469,170.18,170.0,27.20606062]
[1641256123549,107.0,170.17,170.0,27.20606062]
[1641256123751,8.56,170.16,169.98,33.20613299]
[1641256123951,2.47353594,170.15,169.98,33.20613299]
[1641256124151,107.0,170.13,169.98,33.20613299]
[1641256124350,11.10416117,170.12,169.98,33.20613299]
[1641256124553,11.36416117,170.12,169.98,33.20613299]
[1641256124753,11.86416117,170.12,169.98,33.20613299]
[1641256124952,11.86416117,170.12,169.97,31.7716227]
[1641256125150,11.86416117,170.12,169.97,32.0316227]
[1641256125750,11.86416117,170.12,169.97,32.5316227]
[1641256126352,6.6503542,170.11,169.97,32.5316227]
[1641256126553,2.48075728,170.09,169.97,32.5316227]
[1641256126751,8.56,170.08,169.97,32.0316227]
[1641256126951,9.32,170.08,169.97,32.0316227]
[1641256127150,15.9703542,170.08,169.97,32.0316227]
[1641256127952,9.32,170.08,169.97,32.0316227]
[1641256129552,9.32,170.08,169.97,0.26]
[1641256129953,6.65032269,170.07,169.91,97.7964]
[1641256130163,2.16629426,170.05,169.91,98.2964]
[1641256130365,2.16629426,170.05,169.91,0.26]
[1641256130366,8.56,170.04,169.91,0.26]
[1641256130662,8.82,170.04,169.92,31.4846365]
[1641256130863,9.32,170.04,169.92,31.4846365]
[1641256131061,9.32,170.04,169.85,1.42669368]
[1641256131262,9.32,170.04,169.85,1.92669368]
[1641256131863,2.37244031,170.02,169.86,3.98529368]
[1641256132063,8.56,170.01,169.87,22.92752704]
[1641256132463,9.32,170.01,169.87,23.18752704]
[1641256133263,9.32,170.01,169.87,23.68752704]
[1641256133664,9.32,170.01,169.87,22.68752704]
[1641256135265,9.06,170.01,169.87,22.68752704]
[1641256135465,8.56,170.01,169.87,33.4931752]
[1641256135865,8.56,170.04,169.88,8.56]
[1641256136066,8.56,170.04,169.88,8.82]
[1641256136267,4.9840818,170.08,169.89,10.80564816]
[1641256136467,4.9840818,170.08,169.91,24.98503624]
[1641256136667,4.9840818,170.08,169.92,8.56]
[1641256136871,2.8313283,170.07,169.92,10.48669368]
[1641256137068,2.8313283,170.07,169.92,10.74669368]
[1641256137269,2.8313283,170.07,169.93,2.76129368]
[1641256137567,2.8313283,170.07,169.93,3.52129368]
[1641256137969,8.56,170.09,169.93,3.52129368]
[1641256138169,8.56,170.13,169.95,27.75603469]
[1641256138369,80.7821,170.16,169.96,8.56]
[1641256138569,80.7821,170.16,169.96,16.52069368]
[1641256138770,6.64821972,170.12,169.96,17.02069368]
[1641256138968,8.9475119,170.12,169.97,1.42669368]
[1641256139169,8.9475119,170.12,169.98,8.56]
[1641256139372,4.9840818,170.16,169.98,9.06]
[1641256139569,4.9840818,170.16,169.99,30.78882293]
[1641256139769,4.9840818,170.16,170.0,8.56]
[1641256139969,4.9840818,170.16,170.0,15.40069368]
[1641256140168,4.9840818,170.16,170.01,1.42669368]
[1641256140368,2.46836704,170.15,170.01,10.48669368]
[1641256140570,2.72836704,170.15,170.01,9.32]
[1641256140971,3.22836704,170.15,170.01,9.32]
[1641256141173,2.72836704,170.15,170.01,9.32]
[1641256141975,3.22836704,170.15,170.01,9.32]
[1641256142776,3.22836704,170.15,170.01,8.82]
[1641256144173,3.22836704,170.15,170.01,9.32]
[1641256144576,2.72836704,170.15,170.01,9.32]
[1641256144776,2.46836704,170.15,170.01,10.74669368]
[1641256145482,2.46836704,170.15,170.01,9.32]
[1641256146378,3.22836704,170.15,170.01,9.32]
[1641256148413,2.46836704,170.15,170.01,9.32]
[1641256148611,2.46836704,170.15,170.01,10.74669368]
[1641256149011,8.56,170.18,170.01,10.74669368]
[1641256149412,8.56,170.21,170.01,10.74669368]
[1641256149614,8.56,170.21,170.02,24.7401]
[1641256149816,9.06,170.21,170.03,8.56]
[1641256150017,2.89800337,170.2,170.03,10.24669368]
[1641256150214,2.89800337,170.2,170.04,1.42669368]
[1641256150414,2.89800337,170.2,170.05,39.57373671]
[1641256150814,2.89800337,170.2,170.06,1.3433]
[1641256151014,2.89800337,170.2,170.06,1.6033]
[1641256151214,2.89800337,170.2,170.06,2.1033]
[1641256151814,8.56,170.21,170.06,2.1033]
[1641256152015,9.06,170.21,170.06,2.1033]
[1641256152515,8.56,170.21,170.06,2.1033]
[1641256152814,2.70656538,170.2,170.06,10.6633]
[1641256153915,2.70656538,170.2,170.06,12.08999368]
[1641256154115,82.1114,170.25,170.06,12.08999368]
[1641256154317,8.56,170.25,170.07,124.0056]
[1641256154520,8.56,170.25,170.08,8.56]
[1641256154919,8.56,170.28,170.09,28.53427528]
[1641256155118,2.79615483,170.26,170.1,32.4509]
[1641256155321,4.9840818,170.31,170.1,33.87759368]
[1641256155617,4.9840818,170.31,170.11,1.42669368]
[1641256155817,6.64294306,170.31,170.12,8.56]
[1641256156116,6.64294306,170.31,170.13,48.48339368]
[1641256156318,2.73766965,170.3,170.14,40.24043532]
[1641256156518,2.73766965,170.3,170.14,115.97003532]
[1641256156717,6.64294306,170.31,170.14,116.47003532]
[1641256156916,6.64294306,170.31,170.14,117.896729]
[1641256157117,8.56,170.32,170.14,117.896729]
[1641256157716,2.20293779,170.31,170.14,117.896729]
[1641256159217,2.20293779,170.31,170.14,117.636729]
[1641256159618,2.20293779,170.31,170.14,116.21003532]
[1641256160022,2.20293779,170.31,170.15,1.42669368]
[1641256160219,6.6424941,170.3,170.16,8.56]
[1641256160419,6.6424941,170.3,170.16,9.06]
[1641256160617,6.6424941,170.3,170.16,9.32]
[1641256161919,6.6424941,170.3,170.16,10.74669368]
[1641256162324,2.20293779,170.31,170.16,10.74669368]
[1641256162525,2.20293779,170.31,170.16,15.71869368]
[1641256163823,2.20293779,170.31,170.18,23.34794001]
[1641256164025,2.46293779,170.31,170.18,23.60794001]
[1641256164329,8.56,170.34,170.18,31.60594001]
[1641256164525,8.56,170.34,170.18,33.03263369]
[1641256164726,9.06,170.34,170.18,33.03263369]
[1641256165326,2.90688335,170.33,170.18,33.03263369]
[1641256165525,2.90688335,170.33,170.18,31.60594001]
[1641256165726,2.90688335,170.33,170.19,1.42669368]
[1641256165927,2.90688335,170.33,170.19,10.48669368]
[1641256166124,2.90688335,170.33,170.19,10.74669368]
[1641256166326,2.90688335,170.33,170.2,1.42669368]
[1641256166528,2.90688335,170.33,170.2,10.24669368]
[1641256166727,2.90688335,170.33,170.2,10.74669368]
[1641256166931,2.90688335,170.33,170.2,9.06]
[1641256167327,3.40688335,170.33,170.2,0.5]
[1641256167733,3.40688335,170.33,170.19,23.1137]
[1641256168128,2.90688335,170.33,170.19,24.3797]
[1641256168334,2.90688335,170.33,170.19,24.6397]
[1641256168528,2.90688335,170.33,170.2,8.56]
[1641256168731,2.90688335,170.33,170.2,14.994]
[1641256168933,2.90688335,170.33,170.22,30.78597626]
[1641256169334,2.90688335,170.33,170.22,31.54597626]
[1641256171037,3.16688335,170.33,170.22,31.54597626]
[1641256171936,2.90688335,170.33,170.22,38.61897626]
[1641256172940,3.16688335,170.33,170.22,38.35897626]
[1641256173136,3.16688335,170.33,170.22,31.28597626]
[1641256173337,3.66688335,170.33,170.22,31.28597626]
[1641256174555,3.16688335,170.33,170.22,31.54597626]
[1641256175056,2.90688335,170.33,170.22,31.54597626]
[1641256175262,3.16688335,170.33,170.22,31.54597626]
[1641256175460,2.90688335,170.33,170.22,31.54597626]
[1641256176262,3.40688335,170.33,170.22,31.54597626]
[1641256176664,3.40688335,170.33,170.22,31.04597626]
[1641256176864,3.66688335,170.33,170.22,30.78597626]
[1641256177265,3.40688335,170.33,170.22,30.78597626]
[1641256177566,3.66688335,170.33,170.22,30.78597626]
[1641256177964,3.66688335,170.33,170.22,31.04597626]
[1641256179968,3.66688335,170.33,170.22,0.26]
[1641256180166,8.56,170.32,170.18,2.0193]
[1641256180372,9.06,170.32,170.18,0.5]
[1641256180569,9.32,170.32,170.18,0.5]
[1641256180767,9.32,170.32,170.14,1.8051]
[1641256180967,9.32,170.32,170.15,27.96280408]
[1641256181368,9.32,170.32,170.15,28.46280408]
[1641256181570,9.32,170.32,170.15,28.72280408]
[1641256184277,9.32,170.32,170.15,28.46280408]
[1641256185580,9.32,170.32,170.15,28.72280408]
[1641256187182,9.06,170.32,170.15,28.72280408]
[1641256188588,8.56,170.32,170.16,1.42669368]
[1641256188780,2.90688335,170.33,170.16,9.98669368]
[1641256188982,2.90688335,170.33,170.17,115.50883295]
[1641256189181,2.90688335,170.33,170.19,23.826878]
[1641256189382,2.90688335,170.33,170.19,31.530878]
[1641256189584,2.90688335,170.33,170.19,31.790878]
[1641256189782,2.90688335,170.33,170.2,1.42669368]
[1641256189982,2.90688335,170.33,170.2,2.18669368]
[1641256189983,3.16688335,170.33,170.2,2.18669368]
[1641256190183,3.16688335,170.33,170.2,0.76]
[1641256190385,3.16688335,170.33,170.2,0.26]
[1641256190583,3.16688335,170.33,170.19,49.643278]
[1641256190993,3.16688335,170.33,170.19,51.06997168]
[1641256192785,2.90688335,170.33,170.19,51.06997168]
[1641256194018,2.90688335,170.33,170.2,8.56]
[1641256194420,2.90688335,170.33,170.21,1.42669368]
[1641256194824,32.4638,170.37,170.21,2.18669368]
[1641256194825,8.56,170.37,170.21,2.18669368]
[1641256195122,8.56,170.37,170.22,24.5085]
[1641256195320,8.56,170.37,170.22,34.49519368]
[1641256195521,8.56,170.37,170.23,1.42669368]
[1641256195724,8.56,170.37,170.23,11.29309368]
[1641256195923,2.43321471,170.36,170.24,26.13586912]
[1641256196321,2.43321471,170.36,170.24,26.89586912]
[1641256199024,2.43321471,170.36,170.24,26.63586912]
[1641256199230,2.69321471,170.36,170.24,26.63586912]
[1641256199426,3.19321471,170.36,170.24,26.63586912]
[1641256199827,3.19321471,170.36,170.22,1.2661]
[1641256200027,11.75321471,170.36,170.19,1.3304]
[1641256200227,11.75321471,170.36,170.18,72.3291]
[1641256200428,11.75321471,170.36,170.17,23.2867]
[1641256200628,13.17990839,170.36,170.15,1.3207]
[1641256200829,2.53338486,170.32,170.15,25.49515139]
[1641256201031,8.56,170.31,170.15,25.49515139]